[Event "Turkish Cup 2024"]
[Site "Denizli"]
[Date "2024.08.06"]
[Round "11"]
[White "Seker, Gokhan"]
[Black "Kilic, Ihsan"]
[Result "0-1"]
[ECO "C47"]
[WhiteElo "2009"]
[BlackElo "1911"]
[Annotator "NA RC"]
[PlyCount "140"]
[EventDate "2024.08.01"]
[EventType "swiss"]
[EventCountry "TUR"]
[SourceTitle "playchess.com"]
[Source "ChessBase"]
[SourceQuality "1"]
[TimeControl "5400+30"]

1. e4 {[%emt 0:06:00]} e5 {[%emt 0:01:00]} 2. Nf3 {[%emt 0:01:30]} Nf6 {[%emt 0:00:30]} 3. Nc3 {[%emt 0:00:30]} Nc6 {[%emt 0:00:30]} 4. a3 {[%emt 0:00:00]} d6 {[%emt 0:01:30]} 5. d4 {[%emt 0:01:00]} exd4 {[%emt 0:01:30]} 6. Nxd4 {[%emt 0:00:00]} Bd7 {[%emt 0:00:30]} 7. Bb5 {[%emt 0:05:00]} Be7 {[%emt 0:01:30]} 8. Bxc6 {[%emt 0:02:30]} bxc6 {[%emt 0:00:00]} 9. O-O {[%emt 0:00:30]} c5 {[%emt 0:00:00]} 10. Nf5 {[%emt 0:02:30]} Bxf5 {[%emt 0:00:30]} 11. exf5 {[%emt 0:00:30]} O-O {[%emt 0:00:30]} 12. g4 {[%emt 0:03:30]} h6 {[%emt 0:03:30]} 13. f4 {[%emt 0:01:30]} Nh7 {[%emt 0:02:30]} 14. Qf3 {[%emt 0:10:30]} Rb8 {[%emt 0:01:30]} 15. Nd5 {[%emt 0:02:30]} Bh4 {[%emt 0:00:30]} 16. b3 {[%emt 0:10:30]} Re8 {[%emt 0:03:30]} 17. Bb2 {[%emt 0:01:30]} c6 {[%emt 0:00:30]} 18. Ne3 {[%emt 0:01:30]} Bf6 {[%emt 0:01:30]} 19. Bxf6 {[%emt 0:01:30]} Qxf6 {[%emt 0:00:30]} 20. Ng2 {[%emt 0:01:30]} d5 {[%emt 0:00:30]} 21. h4 {[%emt 0:00:30]} Re4 {[%emt 0:00:30]} 22. Rae1 {[%emt 0:05:30]} Rbe8 {[%emt 0:02:30]} 23. Rxe4 {[%emt 0:06:30]} Rxe4 {[%emt 0:00:00]} 24. c3 {[%emt 0:07:30]} a5 {[%emt 0:04:00]} 25. Qh3 {[%emt 0:04:30]} d4 {[%emt 0:09:30]} 26. g5 {[%emt 0:00:30]} Qe7 {[%emt 0:00:30]} 27. f6 {[%emt 0:03:30]} gxf6 {[%emt 0:03:30]} 28. gxh6 {[%emt 0:00:30]} Qf8 {[%emt 0:00:30]} 29. Qf5 {[%emt 0:04:59]} Re8 {[%emt 0:02:30]} 30. Rf3 {[%emt 0:01:48]} Kh8 {[%emt 0:01:30]} 31. Qh5 {[%emt 0:02:14]} Rd8 {[%emt 0:06:30]} 32. Rd3 {[%emt 0:05:10]} Rd5 {[%emt 0:04:30]} 33. f5 {[%emt 0:01:01]} Rd7 {[%emt 0:00:30]} 34. Kh1 {[%emt 0:01:58]} Rd8 {[%emt 0:01:30]} 35. Nf4 {[%emt 0:01:25]} Qe7 {[%emt 0:01:30]} 36. Ng2 {[%emt 0:02:08]} Rg8 {[%emt 0:16:30]} 37. Qf3 {[%emt 0:01:21]} Qe5 {[%emt 0:01:30]} 38. Qf4 {[%emt 0:01:45]} Qxf4 {[%emt 0:08:30]} 39. Nxf4 {[%emt 0:00:02]} Rg4 {[%emt 0:00:30]} 40. Ng2 {[%emt 0:01:10]} Nf8 {[%emt 0:00:30]} 41. b4 {[%emt 0:00:46]} axb4 {[%emt 0:01:30]} 42. axb4 {[%emt 0:00:14]} cxb4 {[%emt 0:00:30]} 43. cxd4 {[%emt 0:00:58]} Nd7 {[%emt 0:01:12]} 44. Kh2 {[%emt 0:00:30]} Nb6 {[%emt 0:01:06]} 45. Kh3 {[%emt 0:00:09]} Re4 {[%emt 0:00:00]} 46. Kg3 {[%emt 0:00:23]} Nd5 {[%emt 0:00:33]} 47. Kf3 {[%emt 0:00:20]} Re8 {[%emt 0:00:43]} 48. Ne3 {[%emt 0:00:20]} Ne7 {[%emt 0:01:35]} 49. d5 {[%emt 0:01:01]} c5 {[%emt 0:01:40]} 50. d6 {[%emt 0:00:18]} Nc6 {[%emt 0:00:19]} 51. d7 {[%emt 0:01:44]} Ne5+ {[%emt 0:00:30]} 52. Ke4 {[%emt 0:00:35]} Nxd7+ {[%emt 0:00:29]} 53. Kd5 {[%emt 0:00:35]} Ne5 {[%emt 0:01:09]} 54. Rb3 {[%emt 0:00:26]} Rc8 {[%emt 0:00:30]} 55. Nc4 {[%emt 0:00:29]} Nxc4 {[%emt 0:02:19]} 56. Kxc4 {[%emt 0:00:30]} Kh7 {[%emt 0:00:30]} 57. Rg3 {[%emt 0:00:30]} Kxh6 {[%emt 0:00:30]} 58. Rg1 {[%emt 0:00:30]} Kh5 {[%emt 0:00:30]} 59. Rg2 {[%emt 0:00:30]} Kxh4 {[%emt 0:00:30]} 60. Rg7 {[%emt 0:00:30]} Rc7 {[%emt 0:00:30]} 61. Rg8 {[%emt 0:00:30]} Rb7 {[%emt 0:00:21]} 62. Kxc5 {[%emt 0:00:40]} b3 {[%emt 0:00:20]} 63. Rg1 {[%emt 0:00:51]} b2 {[%emt 0:00:07]} 64. Rb1 {[%emt 0:00:17]} Kg4 {[%emt 0:00:08]} 65. Kd5 {[%emt 0:00:00]} Kxf5 {[%emt 0:00:12]} 66. Kd4 {[%emt 0:00:06]} Kf4 {[%emt 0:00:49]} 67. Kd3 {[%emt 0:00:10]} Kf3 {[%emt 0:01:04]} 68. Kd2 {[%emt 0:00:17]} Kf2 {[%emt 0:00:00]} 69. Kc2 {[%emt 0:00:28]} Ke2 {[%emt 0:00:24]} 70. Kc3 {[%emt 0:00:30]} f5 {[%emt 0:00:08]} 0-1

[Event "Turkish Cup 2024"]
[Site "Denizli"]
[Date "2024.08.06"]
[Round "11"]
[White "Celebi, Mehmet Alper"]
[Black "Akyuz, Murat"]
[Result "0-1"]
[ECO "B24"]
[WhiteElo "1998"]
[BlackElo "1890"]
[Annotator "NA RC"]
[PlyCount "138"]
[EventDate "2024.08.01"]
[EventType "swiss"]
[EventCountry "TUR"]
[SourceTitle "playchess.com"]
[Source "ChessBase"]
[SourceQuality "1"]
[TimeControl "5400+30"]

1. e4 {[%emt 0:02:00]} c5 {[%emt 0:01:00]} 2. Nc3 {[%emt 0:00:00]} e6 {[%emt 0:00:30]} 3. f4 {[%emt 0:00:00]} Nc6 {[%emt 0:00:30]} 4. Nf3 {[%emt 0:00:30]} d5 {[%emt 0:03:30]} 5. d3 {[%emt 0:03:30]} d4 {[%emt 0:01:30]} 6. Ne2 {[%emt 0:00:00]} g6 {[%emt 0:00:30]} 7. g3 {[%emt 0:00:00]} Bg7 {[%emt 0:00:00]} 8. Bg2 {[%emt 0:00:30]} Nge7 {[%emt 0:00:00]} 9. O-O {[%emt 0:01:30]} h5 {[%emt 0:04:30]} 10. h3 {[%emt 0:01:30]} Bd7 {[%emt 0:00:30]} 11. Bd2 {[%emt 0:01:30]} Rc8 {[%emt 0:06:30]} 12. a4 {[%emt 0:00:30]} a6 {[%emt 0:05:30]} 13. a5 {[%emt 0:00:30]} b5 {[%emt 0:01:30]} 14. axb6 {[%emt 0:01:30]} Qxb6 {[%emt 0:00:00]} 15. b3 {[%emt 0:01:30]} Ra8 {[%emt 0:08:00]} 16. Be1 {[%emt 0:04:30]} e5 {[%emt 0:04:30]} 17. Nd2 {[%emt 0:01:30]} Be6 {[%emt 0:01:30]} 18. Nc4 {[%emt 0:09:30]} Bxc4 {[%emt 0:01:30]} 19. bxc4 {[%emt 0:00:30]} Bh6 {[%emt 0:02:30]} 20. Bd2 {[%emt 0:00:30]} O-O {[%emt 0:02:30]} 21. f5 {[%emt 0:00:00]} Bxd2 {[%emt 0:00:30]} 22. Qxd2 {[%emt 0:00:00]} Kh7 {[%emt 0:03:30]} 23. f6 {[%emt 0:00:30]} Ng8 {[%emt 0:01:30]} 24. g4 {[%emt 0:00:30]} Nd8 {[%emt 0:01:30]} 25. gxh5 {[%emt 0:00:30]} Nxf6 {[%emt 0:03:30]} 26. Rab1 {[%emt 0:00:30]} Qd6 {[%emt 0:01:30]} 27. hxg6+ {[%emt 0:00:30]} fxg6 {[%emt 0:00:30]} 28. Qg5 {[%emt 0:00:30]} Ra7 {[%emt 0:03:30]} 29. h4 {[%emt 0:01:30]} Raf7 {[%emt 0:02:30]} 30. Bf3 {[%emt 0:07:30]} Ne6 {[%emt 0:00:30]} 31. Qg2 {[%emt 0:00:30]} Nh5 {[%emt 0:06:30]} 32. Bxh5 {[%emt 0:00:30]} gxh5 {[%emt 0:00:30]} 33. Rxf7+ {[%emt 0:03:30]} Rxf7 {[%emt 0:00:00]} 34. Ng3 {[%emt 0:04:30]} Rg7 {[%emt 0:03:00]} 35. Qf3 {[%emt 0:04:30]} Nf4 {[%emt 0:00:30]} 36. Kh1 {[%emt 0:01:30]} Qd8 {[%emt 0:12:30]} 37. Nf5 {[%emt 0:00:30]} Rg6 {[%emt 0:02:03]} 38. Rb7+ {[%emt 0:03:30]} Kh8 {[%emt 0:00:29]} 39. Qd1 {[%emt 0:01:30]} Rg4 {[%emt 0:01:41]} 40. Qe1 {[%emt 0:01:30]} Rg8 {[%emt 0:05:10]} 41. Nh6 {[%emt 0:00:30]} Rg7 {[%emt 0:03:22]} 42. Nf7+ {[%emt 0:00:30]} Rxf7 {[%emt 0:00:30]} 43. Rxf7 {[%emt 0:00:00]} Qg8 {[%emt 0:00:20]} 44. Rxf4 {[%emt 0:01:00]} exf4 {[%emt 0:00:05]} 45. Qd2 {[%emt 0:02:30]} Qg3 {[%emt 0:01:54]} 46. Qa5 {[%emt 0:01:30]} Qxh4+ {[%emt 0:00:50]} 47. Kg2 {[%emt 0:00:30]} Qg5+ {[%emt 0:01:03]} 48. Kf2 {[%emt 0:00:00]} h4 {[%emt 0:01:09]} 49. Qxa6 {[%emt 0:01:00]} Qg3+ {[%emt 0:00:22]} 50. Kf1 {[%emt 0:00:00]} Kh7 {[%emt 0:02:03]} 51. Qa7+ {[%emt 0:03:00]} Kh6 {[%emt 0:00:47]} 52. Qb6+ {[%emt 0:02:30]} Kh5 {[%emt 0:01:59]} 53. Qxc5+ {[%emt 0:00:00]} Kh6 {[%emt 0:01:42]} 54. Qd6+ {[%emt 0:00:00]} Kh5 {[%emt 0:00:41]} 55. Qe5+ {[%emt 0:02:30]} Kg4 {[%emt 0:00:30]} 56. Qf5+ {[%emt 0:00:30]} Kf3 {[%emt 0:00:30]} 57. Qh5+ {[%emt 0:00:30]} Qg4 {[%emt 0:00:00]} 58. Qxg4+ {[%emt 0:00:00]} Kxg4 {[%emt 0:00:00]} 59. c5 {[%emt 0:00:00]} Kg3 {[%emt 0:00:00]} 60. c6 {[%emt 0:00:00]} h3 {[%emt 0:00:00]} 61. c7 {[%emt 0:01:00]} h2 {[%emt 0:00:22]} 62. c8=Q {[%emt 0:00:30]} h1=Q+ {[%emt 0:00:00]} 63. Ke2 {[%emt 0:00:00]} f3+ {[%emt 0:00:37]} 64. Kd2 {[%emt 0:00:00]} Qh6+ {[%emt 0:01:34]} 65. Kd1 {[%emt 0:00:30]} Qg5 {[%emt 0:00:42]} 66. Qh8 {[%emt 0:01:30]} Kg2 {[%emt 0:01:51]} 67. Qxd4 {[%emt 0:01:30]} f2 {[%emt 0:00:30]} 68. Qxf2+ {[%emt 0:00:30]} Kxf2 {[%emt 0:00:30]} 69. c3 {[%emt 0:00:00]} Ke3 {[%emt 0:00:00]} 0-1

[Event "Turkish Cup 2024"]
[Site "Denizli"]
[Date "2024.08.06"]
[Round "11"]
[White "Bulgurlu, Okan"]
[Black "Dargali, Hakan"]
[Result "0-1"]
[ECO "A01"]
[WhiteElo "1964"]
[BlackElo "1973"]
[Annotator "NA RC"]
[PlyCount "65"]
[EventDate "2024.08.01"]
[EventType "swiss"]
[EventCountry "TUR"]
[SourceTitle "playchess.com"]
[Source "ChessBase"]
[SourceQuality "1"]
[TimeControl "5400+30"]

1. e4 {[%emt 0:06:00]} Nc6 {[%emt 0:01:00]} 2. b3 {[%emt 0:01:30]} e5 {[%emt 0:00:30]} 3. Bb2 {[%emt 0:00:00]} Nf6 {[%emt 0:00:00]} 4. Nc3 {[%emt 0:00:00]} Bc5 {[%emt 0:00:00]} 5. Bc4 {[%emt 0:00:30]} O-O {[%emt 0:00:00]} 6. h3 {[%emt 0:02:30]} d6 {[%emt 0:00:00]} 7. Nf3 {[%emt 0:02:30]} a6 {[%emt 0:00:30]} 8. a4 {[%emt 0:00:30]} Be6 {[%emt 0:01:30]} 9. O-O {[%emt 0:02:30]} Qd7 {[%emt 0:03:30]} 10. Kh2 {[%emt 0:00:30]} h6 {[%emt 0:02:30]} 11. Qe2 {[%emt 0:17:30]} Rae8 {[%emt 0:04:30]} 12. Nd5 {[%emt 0:00:30]} Bxd5 {[%emt 0:00:30]} 13. exd5 {[%emt 0:00:30]} Nb4 {[%emt 0:00:30]} 14. Qd1 {[%emt 0:10:30]} Nbxd5 {[%emt 0:07:30]} 15. d4 {[%emt 0:00:30]} exd4 {[%emt 0:00:30]} 16. Nxd4 {[%emt 0:00:30]} Nf4 {[%emt 0:22:30]} 17. Qf3 {[%emt 0:03:30]} d5 {[%emt 0:02:30]} 18. Ne2 {[%emt 0:04:30]} Nxe2 {[%emt 0:02:30]} 19. Bxe2 {[%emt 0:00:00]} Ne4 {[%emt 0:01:30]} 20. Rad1 {[%emt 0:00:00]} Qe6 {[%emt 0:09:30]} 21. Bd3 {[%emt 0:04:30]} Bd6+ {[%emt 0:09:30]} 22. Kg1 {[%emt 0:00:30]} c5 {[%emt 0:01:30]} 23. Rfe1 {[%emt 0:22:30]} f5 {[%emt 0:02:30]} 24. Bf1 {[%emt 0:00:54]} Kh7 {[%emt 0:00:30]} 25. Qd3 {[%emt 0:00:23]} d4 {[%emt 0:01:30]} 26. Bc1 {[%emt 0:06:04]} Qg6 {[%emt 0:00:30]} 27. Qf3 {[%emt 0:03:05]} Re7 {[%emt 0:00:30]} 28. Bd3 {[%emt 0:00:51]} Rfe8 {[%emt 0:02:30]} 29. Bf4 {[%emt 0:00:23]} Ng5 {[%emt 0:00:30]} 30. Qg3 {[%emt 0:03:52]} Rxe1+ {[%emt 0:00:30]} 31. Rxe1 {[%emt 0:00:19]} Rxe1+ {[%emt 0:00:30]} 32. Kh2 {[%emt 0:00:00]} Ne4 {[%emt 0:00:00]} 33. Bc1 {[%emt 0:01:12]} 0-1

[Event "Turkish Cup 2024"]
[Site "Denizli"]
[Date "2024.08.06"]
[Round "11"]
[White "Cicek, Bilal Emre"]
[Black "Kavri, Yusuf Eren"]
[Result "0-1"]
[ECO "A14"]
[WhiteElo "1963"]
[BlackElo "2090"]
[Annotator "NA RC"]
[PlyCount "96"]
[EventDate "2024.08.01"]
[EventType "swiss"]
[EventCountry "TUR"]
[SourceTitle "playchess.com"]
[Source "ChessBase"]
[SourceQuality "1"]
[TimeControl "5400+30"]

1. c4 {[%emt 0:01:00]} e6 {[%emt 0:05:00]} 2. g3 {[%emt 0:00:00]} Nf6 {[%emt 0:00:30]} 3. Bg2 {[%emt 0:00:00]} d5 {[%emt 0:00:30]} 4. Nf3 {[%emt 0:00:30]} Be7 {[%emt 0:00:00]} 5. O-O {[%emt 0:00:00]} O-O {[%emt 0:00:00]} 6. b3 {[%emt 0:00:00]} d4 {[%emt 0:00:00]} 7. Bb2 {[%emt 0:00:30]} Nc6 {[%emt 0:00:00]} 8. e3 {[%emt 0:00:00]} e5 {[%emt 0:00:00]} 9. exd4 {[%emt 0:02:00]} exd4 {[%emt 0:00:00]} 10. d3 {[%emt 0:03:30]} a5 {[%emt 0:00:30]} 11. a3 {[%emt 0:00:30]} h6 {[%emt 0:00:30]} 12. Nbd2 {[%emt 0:00:30]} Bf5 {[%emt 0:01:30]} 13. Qc2 {[%emt 0:00:30]} Bc5 {[%emt 0:05:30]} 14. Rfe1 {[%emt 0:01:30]} Qd6 {[%emt 0:01:30]} 15. Ne4 {[%emt 0:23:30]} Nxe4 {[%emt 0:03:30]} 16. dxe4 {[%emt 0:02:30]} Bh7 {[%emt 0:00:00]} 17. Bf1 {[%emt 0:14:30]} Rae8 {[%emt 0:08:00]} 18. Bd3 {[%emt 0:00:30]} Re6 {[%emt 0:01:30]} 19. Bc1 {[%emt 0:13:30]} Rfe8 {[%emt 0:05:30]} 20. Bf4 {[%emt 0:03:30]} Qe7 {[%emt 0:00:30]} 21. e5 {[%emt 0:00:00]} Bxd3 {[%emt 0:01:30]} 22. Qxd3 {[%emt 0:00:00]} Rd8 {[%emt 0:19:30]} 23. a4 {[%emt 0:06:30]} Bb4 {[%emt 0:05:30]} 24. Bd2 {[%emt 0:03:30]} Nxe5 {[%emt 0:06:30]} 25. Nxe5 {[%emt 0:01:30]} Rxe5 {[%emt 0:00:30]} 26. Bxb4 {[%emt 0:00:30]} axb4 {[%emt 0:00:30]} 27. Rxe5 {[%emt 0:01:30]} Qxe5 {[%emt 0:00:00]} 28. Rd1 {[%emt 0:00:30]} c5 {[%emt 0:01:00]} 29. Kf1 {[%emt 0:01:30]} Re8 {[%emt 0:00:30]} 30. Qf3 {[%emt 0:00:30]} Qe4 {[%emt 0:02:30]} 31. Kg2 {[%emt 0:00:30]} f5 {[%emt 0:00:30]} 32. h4 {[%emt 0:00:30]} Kf7 {[%emt 0:03:30]} 33. a5 {[%emt 0:00:30]} Re6 {[%emt 0:05:30]} 34. Ra1 {[%emt 0:01:30]} Kf6 {[%emt 0:00:30]} 35. Rd1 {[%emt 0:00:32]} Ra6 {[%emt 0:02:30]} 36. Ra1 {[%emt 0:00:59]} g5 {[%emt 0:01:30]} 37. hxg5+ {[%emt 0:00:08]} hxg5 {[%emt 0:00:30]} 38. g4 {[%emt 0:02:15]} Qxg4+ {[%emt 0:00:30]} 39. Qxg4 {[%emt 0:00:30]} fxg4 {[%emt 0:00:00]} 40. Kg3 {[%emt 0:00:14]} Kf5 {[%emt 0:00:00]} 41. Re1 {[%emt 0:00:11]} Rxa5 {[%emt 0:00:30]} 42. Re7 {[%emt 0:00:00]} Ra3 {[%emt 0:00:30]} 43. Rf7+ {[%emt 0:00:00]} Ke4 {[%emt 0:00:30]} 44. Kxg4 {[%emt 0:00:11]} Rxb3 {[%emt 0:00:30]} 45. Rxb7 {[%emt 0:00:30]} d3 {[%emt 0:00:30]} 46. Rd7 {[%emt 0:00:30]} Rc3 {[%emt 0:00:30]} 47. f3+ {[%emt 0:00:00]} Ke3 {[%emt 0:00:30]} 48. Kxg5 {[%emt 0:00:00]} d2 {[%emt 0:00:00]} 0-1

[Event "Turkish Cup 2024"]
[Site "Denizli"]
[Date "2024.08.06"]
[Round "11"]
[White "Celik, Ege Yigit"]
[Black "Polat, Ali Gorkem"]
[Result "1-0"]
[ECO "A38"]
[WhiteElo "1949"]
[BlackElo "1798"]
[Annotator "NA RC"]
[PlyCount "67"]
[EventDate "2024.08.01"]
[EventType "swiss"]
[EventCountry "TUR"]
[SourceTitle "playchess.com"]
[Source "ChessBase"]
[SourceQuality "1"]
[TimeControl "5400+30"]

1. c4 {[%emt 0:01:00]} c5 {[%emt 0:06:00]} 2. Nc3 {[%emt 0:00:00]} Nc6 {[%emt 0:00:30]} 3. g3 {[%emt 0:00:00]} g6 {[%emt 0:00:30]} 4. Bg2 {[%emt 0:00:30]} Bg7 {[%emt 0:00:30]} 5. Nf3 {[%emt 0:00:00]} d6 {[%emt 0:00:30]} 6. a3 {[%emt 0:00:00]} Nf6 {[%emt 0:01:30]} 7. d3 {[%emt 0:03:30]} O-O {[%emt 0:01:30]} 8. Rb1 {[%emt 0:00:30]} a5 {[%emt 0:03:30]} 9. O-O {[%emt 0:03:30]} Rb8 {[%emt 0:05:30]} 10. Bd2 {[%emt 0:01:30]} Bd7 {[%emt 0:00:30]} 11. Nb5 {[%emt 0:05:30]} Ne8 {[%emt 0:04:30]} 12. b4 {[%emt 0:02:30]} axb4 {[%emt 0:00:00]} 13. axb4 {[%emt 0:00:00]} Nxb4 {[%emt 0:01:00]} 14. Bxb4 {[%emt 0:00:00]} cxb4 {[%emt 0:00:30]} 15. Rxb4 {[%emt 0:00:30]} Nc7 {[%emt 0:00:30]} 16. Nxc7 {[%emt 0:00:30]} Qxc7 {[%emt 0:00:30]} 17. Qb3 {[%emt 0:00:30]} Rfc8 {[%emt 0:14:30]} 18. Rb1 {[%emt 0:04:30]} b5 {[%emt 0:02:30]} 19. cxb5 {[%emt 0:01:30]} Rb6 {[%emt 0:00:30]} 20. Nd2 {[%emt 0:02:30]} Rcb8 {[%emt 0:03:30]} 21. Qa4 {[%emt 0:03:30]} Qc5 {[%emt 0:02:30]} 22. d4 {[%emt 0:02:30]} Qc8 {[%emt 0:09:30]} 23. e3 {[%emt 0:10:30]} Qe8 {[%emt 0:02:30]} 24. Bf1 {[%emt 0:06:30]} d5 {[%emt 0:00:00]} 25. Qa5 {[%emt 0:07:30]} Bf5 {[%emt 0:04:00]} 26. R1b2 {[%emt 0:04:30]} e5 {[%emt 0:00:30]} 27. Nb3 {[%emt 0:03:30]} Bf8 {[%emt 0:01:30]} 28. Ra4 {[%emt 0:02:30]} Bd7 {[%emt 0:02:30]} 29. Nc5 {[%emt 0:01:30]} Bxb5 {[%emt 0:08:30]} 30. Rab4 {[%emt 0:03:30]} Bxc5 {[%emt 0:00:30]} 31. dxc5 {[%emt 0:00:30]} Ra6 {[%emt 0:00:30]} 32. Rxb5 {[%emt 0:00:30]} Rxb5 {[%emt 0:01:30]} 33. Qxb5 {[%emt 0:00:30]} Qe6 {[%emt 0:00:00]} 34. Qxa6 {[%emt 0:00:30]} 1-0

[Event "Turkish Cup 2024"]
[Site "Denizli"]
[Date "2024.08.06"]
[Round "11"]
[White "Demirag, Batuhan"]
[Black "Zeyrek, Ayaz"]
[Result "1/2-1/2"]
[ECO "A31"]
[WhiteElo "1912"]
[BlackElo "1798"]
[Annotator "NA RC"]
[PlyCount "112"]
[EventDate "2024.08.01"]
[EventType "swiss"]
[EventCountry "TUR"]
[SourceTitle "playchess.com"]
[Source "ChessBase"]
[SourceQuality "1"]
[TimeControl "5400+30"]

1. Nf3 {[%emt 0:01:00]} c5 {[%emt 0:01:00]} 2. c4 {[%emt 0:00:30]} Nc6 {[%emt 0:00:30]} 3. d4 {[%emt 0:00:30]} cxd4 {[%emt 0:00:00]} 4. Nxd4 {[%emt 0:00:00]} e5 {[%emt 0:00:00]} 5. Nc2 {[%emt 0:01:00]} Nf6 {[%emt 0:01:30]} 6. Nc3 {[%emt 0:00:30]} d6 {[%emt 0:01:30]} 7. e4 {[%emt 0:02:30]} Be6 {[%emt 0:01:30]} 8. Be2 {[%emt 0:00:00]} Be7 {[%emt 0:00:30]} 9. O-O {[%emt 0:01:00]} O-O {[%emt 0:00:30]} 10. b3 {[%emt 0:01:30]} a6 {[%emt 0:03:30]} 11. Kh1 {[%emt 0:04:30]} Nd7 {[%emt 0:09:30]} 12. Nd5 {[%emt 0:01:30]} Bxd5 {[%emt 0:01:30]} 13. exd5 {[%emt 0:00:30]} Ncb8 {[%emt 0:00:30]} 14. Be3 {[%emt 0:05:30]} Bg5 {[%emt 0:06:30]} 15. f4 {[%emt 0:07:30]} exf4 {[%emt 0:00:30]} 16. Bxf4 {[%emt 0:00:30]} Bxf4 {[%emt 0:00:00]} 17. Rxf4 {[%emt 0:00:00]} Ne5 {[%emt 0:01:00]} 18. Qd4 {[%emt 0:00:00]} Nbd7 {[%emt 0:00:30]} 19. Raf1 {[%emt 0:00:30]} Qa5 {[%emt 0:06:30]} 20. a4 {[%emt 0:11:30]} Rac8 {[%emt 0:08:30]} 21. Ne3 {[%emt 0:01:30]} g6 {[%emt 0:03:30]} 22. Bg4 {[%emt 0:05:30]} f5 {[%emt 0:01:30]} 23. Bxf5 {[%emt 0:04:30]} gxf5 {[%emt 0:00:30]} 24. Nxf5 {[%emt 0:00:00]} Kh8 {[%emt 0:02:30]} 25. Nxd6 {[%emt 0:03:00]} Rxf4 {[%emt 0:01:30]} 26. Rxf4 {[%emt 0:00:30]} Qe1+ {[%emt 0:00:30]} 27. Qg1 {[%emt 0:00:30]} Qxg1+ {[%emt 0:00:30]} 28. Kxg1 {[%emt 0:00:30]} Rb8 {[%emt 0:00:30]} 29. Re4 {[%emt 0:05:30]} Ng6 {[%emt 0:02:30]} 30. b4 {[%emt 0:02:30]} b6 {[%emt 0:02:30]} 31. h4 {[%emt 0:05:30]} h5 {[%emt 0:06:30]} 32. Re6 {[%emt 0:07:30]} Kh7 {[%emt 0:01:30]} 33. Ne4 {[%emt 0:01:30]} Nde5 {[%emt 0:08:30]} 34. Nf6+ {[%emt 0:08:44]} Kh6 {[%emt 0:01:30]} 35. c5 {[%emt 0:04:33]} bxc5 {[%emt 0:00:30]} 36. bxc5 {[%emt 0:00:00]} Rb1+ {[%emt 0:03:30]} 37. Kh2 {[%emt 0:00:00]} Rf1 {[%emt 0:03:30]} 38. Kg3 {[%emt 0:04:56]} Rc1 {[%emt 0:02:30]} 39. c6 {[%emt 0:02:43]} Rc3+ {[%emt 0:01:07]} 40. Kh2 {[%emt 0:00:30]} Rc1 {[%emt 0:01:46]} 41. d6 {[%emt 0:02:18]} Nxc6 {[%emt 0:00:20]} 42. d7 {[%emt 0:00:01]} Nd8 {[%emt 0:01:19]} 43. Re8 {[%emt 0:00:02]} Nf7 {[%emt 0:00:24]} 44. d8=Q {[%emt 0:02:28]} Nxd8 {[%emt 0:00:30]} 45. Rxd8 {[%emt 0:00:00]} Rc4 {[%emt 0:01:08]} 46. g3 {[%emt 0:01:07]} Rxa4 {[%emt 0:00:27]} 47. Rd5 {[%emt 0:00:09]} Ra2+ {[%emt 0:03:44]} 48. Kh3 {[%emt 0:00:08]} a5 {[%emt 0:00:46]} 49. Rxh5+ {[%emt 0:01:34]} Kg7 {[%emt 0:00:00]} 50. Ne4 {[%emt 0:00:15]} Re2 {[%emt 0:01:30]} 51. Nc5 {[%emt 0:03:05]} Re5 {[%emt 0:00:46]} 52. Rxe5 {[%emt 0:00:33]} Nxe5 {[%emt 0:00:30]} 53. g4 {[%emt 0:00:30]} Nc4 {[%emt 0:00:30]} 54. g5 {[%emt 0:00:00]} Nb6 {[%emt 0:00:10]} 55. Kg4 {[%emt 0:00:00]} a4 {[%emt 0:00:00]} 56. h5 {[%emt 0:02:53]} a3 {[%emt 0:00:00]} 1/2-1/2

[Event "Turkish Cup 2024"]
[Site "Denizli"]
[Date "2024.08.06"]
[Round "11"]
[White "Herdem, Talha"]
[Black "Bektas, Arda"]
[Result "1/2-1/2"]
[ECO "B23"]
[WhiteElo "1911"]
[BlackElo "1652"]
[Annotator "NA RC"]
[PlyCount "38"]
[EventDate "2024.08.01"]
[EventType "swiss"]
[EventCountry "TUR"]
[SourceTitle "playchess.com"]
[Source "ChessBase"]
[SourceQuality "1"]
[TimeControl "5400+30"]

1. e4 {[%emt 0:02:00]} c5 {[%emt 0:03:00]} 2. Nc3 {[%emt 0:00:30]} Nc6 {[%emt 0:00:30]} 3. Bb5 {[%emt 0:00:30]} Nd4 {[%emt 0:00:30]} 4. Nf3 {[%emt 0:00:00]} a6 {[%emt 0:00:00]} 5. Bd3 {[%emt 0:00:00]} g6 {[%emt 0:00:00]} 6. b4 {[%emt 0:01:30]} d6 {[%emt 0:03:30]} 7. Nxd4 {[%emt 0:10:30]} cxd4 {[%emt 0:00:30]} 8. Ne2 {[%emt 0:00:30]} d5 {[%emt 0:13:30]} 9. e5 {[%emt 0:04:30]} Bg7 {[%emt 0:00:30]} 10. f4 {[%emt 0:00:30]} f6 {[%emt 0:00:30]} 11. exf6 {[%emt 0:00:30]} Nxf6 {[%emt 0:18:30]} 12. Bb2 {[%emt 0:04:30]} Ne4 {[%emt 0:00:30]} 13. Bxd4 {[%emt 0:03:30]} Bxd4 {[%emt 0:05:30]} 14. Nxd4 {[%emt 0:00:00]} e5 {[%emt 0:00:30]} 15. Bxe4 {[%emt 0:07:00]} dxe4 {[%emt 0:00:30]} 16. Ne2 {[%emt 0:00:30]} Qb6 {[%emt 0:06:30]} 17. Rf1 {[%emt 0:10:30]} O-O {[%emt 0:02:30]} 18. Qb1 {[%emt 0:04:30]} Be6 {[%emt 0:12:30]} 19. Qb2 {[%emt 0:00:30]} exf4 {[%emt 0:00:30]} 1/2-1/2